bitfinex/quotes_ETHUSD_20250908
["timestamp","ask_amount","ask_price","bid_price","bid_amount"]
[1757327303885,8.01216224,4335.4,4335.3,0.002]
[1757327304123,8.51057087,4335.4,4335.3,0.002]
[1757327304422,4.64157087,4335.4,4335.3,0.002]
[1757327304580,8.01216224,4335.4,4335.3,0.002]
[1757327304785,8.51057087,4335.4,4335.3,0.002]
[1757327304983,4.64157087,4335.4,4335.3,0.002]
[1757327305213,8.01216224,4335.4,4335.3,0.002]
[1757327305405,8.51057087,4335.4,4335.3,0.002]
[1757327305803,8.51057087,4335.4,4335.3,1.2484]
[1757327306002,7.02193314,4335.4,4335.3,1.2484]
[1757327307053,7.02193314,4335.4,4335.3,0.002]
[1757327307660,7.02193314,4335.4,4335.3,0.458]
[1757327309140,7.02193314,4335.4,4335.3,1.2484]
[1757327311030,7.02193314,4335.4,4335.3,0.7588]
[1757327311229,7.96411431,4335.4,4335.3,0.002]
[1757327311812,8.4624523,4335.4,4335.3,0.002]
[1757327312344,8.6446523,4335.4,4335.3,0.002]
[1757327318350,8.64484644,4335.4,4335.3,0.002]
[1757327321928,11.64484644,4335.4,4335.3,0.002]
[1757327324440,7.77584644,4335.4,4335.3,0.002]
[1757327324664,11.64384644,4335.4,4335.3,0.002]
[1757327325040,7.77584644,4335.4,4335.3,0.002]
[1757327325234,11.64384644,4335.4,4335.3,0.002]
[1757327331768,11.64282937,4335.4,4335.3,0.002]
[1757327337735,18.70282937,4335.4,4335.3,0.002]
[1757327338747,18.70282937,4335.4,4335.1,1e-08]
[1757327338748,2.30669865,4335.2,4335.1,1e-08]
[1757327339070,17.81006813,4335.2,4335.1,1e-08]
[1757327339274,21.73966806,4335.2,4335.1,1e-08]
[1757327340335,2.30680507,4335.0,4334.9,0.002]
[1757327340537,9.5197289,4335.0,4334.9,0.4654]
[1757327340732,10.01826103,4335.0,4334.9,0.4654]
[1757327340935,12.524569,4335.0,4334.9,0.002]
[1757327341360,12.286169,4335.0,4334.9,0.002]
[1757327341752,12.37859033,4335.0,4334.9,0.002]
[1757327342579,12.61899033,4335.0,4334.9,0.002]
[1757327345013,12.61899033,4335.0,4334.5,0.4709]
[1757327345014,3.0,4334.9,4334.2,0.4729]
[1757327345221,2.30707117,4334.5,4334.2,0.4729]
[1757327345404,9.51983623,4334.5,4334.4,0.4729]
[1757327345611,10.01774061,4334.5,4334.4,0.7719]
[1757327346133,10.49064061,4334.5,4334.4,0.7719]
[1757327347148,10.49064061,4334.5,4334.4,1.2353]
[1757327347443,12.75854858,4334.5,4334.4,1.2353]
[1757327347648,13.25854858,4334.5,4334.4,1.2353]
[1757327356137,13.04244451,4334.5,4334.4,1.2353]
[1757327356373,13.25865767,4334.5,4334.4,1.2353]
[1757327356935,13.25785767,4334.5,4334.4,1.2353]
[1757327358636,13.25685767,4334.5,4334.4,1.2353]
[1757327359158,7.36138433,4334.5,4334.4,1.2353]
[1757327359671,6.86138433,4334.5,4334.4,1.2353]
[1757327359857,6.86138433,4334.5,4334.4,0.7644]
[1757327360039,6.86138433,4334.5,4334.4,1.2353]
[1757327362517,2.99538433,4334.5,4334.4,1.2353]
[1757327362804,6.86138433,4334.5,4334.4,1.2353]
[1757327365407,2.99538433,4334.5,4334.4,1.2353]
[1757327365609,6.86138433,4334.5,4334.4,1.2353]
[1757327366947,8.70762272,4334.5,4334.4,0.002]
[1757327367152,9.05363787,4334.5,4334.4,0.002]
[1757327367299,9.05365207,4334.5,4334.4,0.002]
[1757327367505,9.32752905,4334.5,4334.4,1.2106]
[1757327367700,7.70469066,4334.5,4334.4,1.2106]
[1757327367918,7.20641799,4334.5,4334.4,1.2106]
[1757327368119,7.70468676,4334.5,4334.4,1.2106]
[1757327368722,3.83968676,4334.5,4334.4,1.2106]
[1757327368919,7.20641799,4334.5,4334.4,1.2106]
[1757327369233,7.70468676,4334.5,4334.4,1.2106]
[1757327369745,7.70468676,4334.5,4334.4,0.002]
[1757327369746,8.7058554,4334.5,4334.4,0.002]
[1757327370936,8.20758663,4334.5,4334.4,0.002]
[1757327371143,8.705911,4334.5,4334.4,0.288]
[1757327371339,8.705911,4334.5,4334.4,1.2106]
[1757327372229,7.70474236,4334.5,4334.4,1.2106]
[1757327372426,3.83974236,4334.5,4334.4,1.2106]
[1757327372632,7.20641799,4334.5,4334.4,1.2106]
[1757327372833,7.20643706,4334.5,4334.4,1.2106]
[1757327374343,3.34143706,4334.5,4334.4,1.2106]
[1757327374545,7.20643706,4334.5,4334.4,1.2106]
[1757327375160,3.34143706,4334.5,4334.4,1.2106]
[1757327375369,7.20643706,4334.5,4334.4,1.2106]
[1757327376369,7.20643706,4334.5,4334.4,0.7533]
[1757327376731,7.20743706,4334.5,4334.4,0.7533]
[1757327377347,7.20743706,4334.5,4334.4,1.2106]
[1757327378658,3.34243706,4334.5,4334.4,1.2106]
[1757327378844,6.86138433,4334.5,4334.4,1.2106]
[1757327379864,2.78017117,4334.5,4334.4,1.2106]
[1757327380056,6.64517117,4334.5,4334.4,1.2106]
[1757327382546,6.64437117,4334.5,4334.4,1.2106]
[1757327382733,6.64337117,4334.5,4334.4,1.2106]
[1757327383652,6.64337117,4334.5,4334.4,0.7453]
[1757327383844,6.64337117,4334.5,4334.4,1.2106]
[1757327385871,4.3379,4334.5,4334.4,1.2106]
[1757327386075,0.4739,4334.5,4334.4,1.2106]
[1757327386276,0.001,4334.5,4334.4,1.33206]
[1757327386479,0.001,4334.5,4334.4,1.2106]
[1757327387040,2.30807117,4334.5,4334.4,1.2106]
[1757327388784,2.72120974,4334.5,4334.4,1.2106]
[1757327389081,2.72120974,4334.5,4334.4,0.7453]
[1757327389250,2.72120974,4334.5,4334.4,0.288]
[1757327389451,2.72120974,4334.5,4334.4,1.2106]
[1757327390339,2.72120974,4334.5,4334.4,0.288]
[1757327391759,2.72120974,4334.5,4334.4,1.2106]
[1757327392159,2.72120974,4334.5,4334.4,0.7533]
[1757327392786,2.72120974,4334.5,4334.4,1.2106]
[1757327392977,0.41413857,4334.5,4334.4,1.2106]
[1757327393459,0.41413857,4334.5,4334.4,1.33206]
[1757327394484,0.001,4334.5,4334.4,1.33206]
[1757327395754,0.001,4334.5,4334.4,3.6391844]
[1757327396164,0.001,4334.5,4334.4,1.33206]
[1757327396362,0.001,4334.5,4334.4,4.4311844]
[1757327396799,0.001,4334.5,4334.4,10.57025819]
[1757327396974,0.001,4334.5,4334.4,13.57025819]
[1757327397164,0.001,4334.5,4334.4,13.68545819]
[1757327397993,0.001,4334.5,4334.4,13.80065819]
[1757327398377,0.001,4334.5,4334.4,19.93973198]
[1757327398980,0.001,4335.0,4334.9,3.09885828]
[1757327399210,0.001,4335.0,4334.9,15.1838179]
[1757327399518,0.001,4335.0,4334.9,19.5525179]
[1757327399715,0.001,4335.0,4334.9,19.64488183]
[1757327399915,0.001,4335.1,4335.0,6.09880507]
[1757327400084,0.001,4335.1,4335.0,7.06530507]
[1757327400283,0.001,4335.1,4335.0,9.62021304]
[1757327400514,0.001,4335.5,4335.3,3.09864544]
[1757327400714,0.001,4335.5,4335.3,16.12378568]
[1757327400882,0.001,4335.5,4335.3,17.46941923]
[1757327401628,1e-08,4335.6,4335.5,3.09853903]
[1757327401922,0.025,4336.8,4336.7,6.0979008]
[1757327402221,0.025,4336.8,4336.7,19.12547459]
[1757327403633,0.025,4336.8,4336.7,19.24067459]
[1757327404041,0.025,4336.8,4336.7,15.37867459]
[1757327404180,0.025,4336.8,4336.7,19.24067459]
[1757327404392,0.025,4336.8,4336.7,19.67202042]
[1757327405540,0.025,4336.8,4336.7,19.67102042]
[1757327405740,0.025,4336.8,4336.7,9.67094663]
[1757327405882,0.025,4336.8,4336.6,3.9762]
[1757327406233,0.025,4336.8,4336.7,12.69847459]
[1757327406416,0.025,4336.8,4336.7,13.49047459]
[1757327406614,0.025,4336.8,4336.7,7.3514008]
[1757327406781,0.025,4336.8,4336.7,7.44372316]
[1757327406986,0.025,4336.8,4336.7,14.94386941]
[1757327407929,0.0242,4336.8,4336.7,14.94386941]
[1757327411992,0.0252,4336.8,4336.7,14.94386941]
[1757327413011,0.0252,4336.8,4336.7,14.47266941]
[1757327413326,0.0252,4336.8,4336.7,14.94386941]
[1757327415800,0.0252,4336.8,4336.7,15.05906941]
[1757327420224,0.0252,4336.8,4336.7,15.05906941]
[1757327427606,0.0252,4336.8,4336.7,15.02896941]
[1757327433124,0.0252,4336.8,4336.7,14.53366941]
[1757327433335,0.0244,4336.8,4336.7,14.53366941]
[1757327433814,0.0244,4336.8,4336.7,15.01206941]
[1757327434186,0.0244,4336.8,4336.7,14.09256941]
[1757327434483,0.0244,4336.8,4336.7,13.80556941]
[1757327434881,0.2434,4336.8,4336.7,13.80556941]
[1757327435321,0.3187,4336.8,4336.7,13.80556941]
[1757327437226,0.3187,4336.8,4336.7,5.39822316]
[1757327437521,1.1924,4336.8,4336.7,9.1639008]
[1757327438239,0.0244,4336.8,4336.7,11.1876008]
[1757327440239,0.001,4337.3,4337.2,3.09763497]
[1757327440444,0.001,4337.3,4337.2,18.98612835]
[1757327440607,0.001,4337.3,4337.2,20.28707391]
[1757327441645,0.001,4337.3,4337.2,15.50957391]
[1757327441835,0.001,4337.3,4337.2,19.05537391]
[1757327442160,0.001,4337.3,4337.2,19.75929118]
[1757327442322,0.001,4337.3,4337.2,20.07149118]
[1757327442856,0.001,4337.3,4337.2,19.75929118]
[1757327443422,0.001,4337.3,4337.2,20.07149118]
[1757327443832,0.001,4337.3,4337.2,20.99099118]
[1757327444033,0.001,4337.3,4337.2,20.54989118]
[1757327444249,0.001,4337.3,4337.2,20.07149118]
[1757327444650,0.001,4337.3,4337.2,21.07149118]
[1757327444962,0.22,4337.3,4337.2,20.75929118]
[1757327445638,0.22,4337.3,4337.2,12.81893687]
[1757327446581,0.001,4337.3,4337.2,12.81893687]
[1757327447136,0.001,4337.3,4337.2,13.60953687]
[1757327447370,0.001,4337.3,4337.2,14.16583687]
[1757327449147,0.001,4337.3,4337.2,12.93413687]
[1757327449382,0.001,4337.3,4337.2,14.10831885]
[1757327449566,0.001,4337.3,4337.2,14.42051885]
[1757327449945,0.001,4337.3,4337.2,14.89891885]
[1757327450165,0.001,4337.3,4337.2,14.42051885]
[1757327450969,0.001,4337.3,4337.2,14.89891885]
[1757327451277,0.001,4337.3,4337.2,15.34001885]
[1757327455347,0.001,4337.3,4337.2,14.86161885]
[1757327455879,0.001,4337.3,4337.2,14.42051885]
[1757327456183,0.001,4337.3,4337.2,14.10831885]
[1757327456711,0.001,4337.3,4337.2,14.87811885]
[1757327456866,0.001,4337.3,4337.2,14.42141885]
[1757327457071,0.001,4337.3,4337.2,14.10831885]
[1757327457575,0.001,4337.3,4337.2,14.42141885]
[1757327458302,0.001,4337.3,4337.2,14.87261885]
[1757327458479,0.001,4337.3,4337.2,14.10831885]
[1757327458680,0.001,4337.3,4337.2,14.87261885]
[1757327458899,0.001,4337.3,4337.2,15.32931885]
[1757327459095,0.0002,4337.3,4337.2,14.10831885]
[1757327459288,0.0002,4337.3,4337.2,21.34375589]
[1757327461205,0.0002,4337.3,4337.2,21.65685589]
[1757327461811,0.0002,4337.3,4337.2,22.11355589]
[1757327463284,0.0002,4337.3,4337.2,21.65685589]
[1757327463527,0.2389,4337.3,4337.2,21.34375589]
[1757327463897,0.0002,4337.3,4337.2,21.65685589]
[1757327464227,0.0002,4337.3,4337.2,22.56475589]
[1757327469848,0.0002,4337.3,4337.2,22.11355589]
[1757327470066,0.0002,4337.3,4337.2,21.65685589]
[1757327470255,0.0002,4337.3,4337.2,21.34375589]
[1757327471532,0.0002,4337.3,4337.2,22.11355589]
[1757327473245,0.0002,4337.3,4337.2,22.56475589]
[1757327475087,0.001,4337.7,4337.4,0.792]
[1757327475385,0.001,4337.7,4337.6,13.33285939]
[1757327475741,0.001,4337.7,4337.6,14.44805939]
[1757327475992,0.001,4337.7,4337.6,14.54036002]
[1757327477150,0.2397,4337.7,4337.6,14.54036002]
[1757327477576,0.001,4337.7,4337.6,14.85346002]
[1757327477778,0.001,4337.7,4337.6,14.54036002]
[1757327478071,0.3117,4337.7,4337.6,14.54036002]
[1757327482301,0.3117,4337.7,4337.6,7.30492298]
[1757327482586,1.166,4337.7,4337.6,7.30492298]
[1757327482787,1.166,4337.7,4337.6,10.36792298]
[1757327482945,1.166,4337.7,4337.6,10.27562235]
[1757327483143,1.166,4337.7,4337.6,11.06762235]
[1757327484143,1.1652,4337.7,4337.6,11.06762235]
[1757327485664,1.1652,4337.7,4337.6,4.9072]
[1757327485894,1.28382,4337.7,4337.6,5.647]
[1757327486079,1.28382,4337.7,4337.6,1.792]
[1757327486278,1.28382,4337.7,4337.6,1.0]
[1757327486452,1.28382,4337.7,4337.6,4.855]
[1757327486655,3.5891892,4337.7,4337.6,4.855]
[1757327486856,1.28382,4337.7,4337.6,5.647]
[1757327489284,3.5891892,4337.7,4337.6,5.647]
[1757327492490,3.5891892,4337.7,4337.6,1.0]
[1757327493005,3.5891892,4337.7,4337.6,1.792]
[1757327494500,3.5891892,4337.7,4337.6,1.0]
[1757327494710,3.80476715,4337.7,4337.6,1.0]
[1757327494893,3.5891892,4337.7,4337.6,1.0]
[1757327495211,7.4441892,4337.7,4337.6,1.792]
[1757327495616,7.65967083,4337.7,4337.3,0.002]
[1757327495816,5.3054755,4337.5,4337.3,0.002]
[1757327496017,5.52101518,4337.4,4337.3,0.002]
[1757327496314,6.67291518,4337.4,4337.3,0.002]
[1757327496677,2.3059008,4336.7,4336.6,0.002]
[1757327496897,5.75183467,4336.7,4336.6,0.002]
[1757327497216,6.68849088,4336.7,4336.6,0.002]
[1757327497907,6.85866769,4336.7,4336.6,0.002]
[1757327499715,10.71466769,4336.7,4336.6,0.002]
[1757327501207,6.85866769,4336.7,4336.6,0.002]
[1757327501429,10.71466769,4336.7,4336.6,0.002]
[1757327509826,10.71386769,4336.7,4336.6,0.002]
[1757327510154,16.84753779,4336.7,4336.6,0.002]
[1757327510351,2.30600714,4336.5,4336.4,1e-08]
[1757327510503,6.16300714,4336.5,4336.4,1e-08]
[1757327510706,7.31500714,4336.5,4336.4,1e-08]
[1757327510928,7.69157307,4336.5,4336.4,1e-08]
[1757327511125,9.54637807,4336.5,4336.4,1e-08]
[1757327512134,5.32027807,4336.5,4336.4,1e-08]
[1757327512336,7.69157307,4336.5,4336.4,1e-08]
[1757327512941,7.32247307,4336.5,4336.4,1e-08]
[1757327513537,7.69157307,4336.5,4336.4,1e-08]
[1757327514640,7.78395129,4336.5,4336.4,1e-08]
[1757327517247,7.99908692,4336.5,4336.4,1e-08]
[1757327517412,9.68294939,4336.5,4336.4,1e-08]
[1757327519324,10.1790772,4336.5,4336.4,1e-08]
[1757327520966,10.17931117,4336.5,4336.4,1e-08]
[1757327521577,9.33971879,4336.5,4336.4,1e-08]
[1757327522268,10.29103118,4336.5,4336.4,1e-08]
[1757327522817,16.42470128,4336.5,4336.4,1e-08]
[1757327523219,19.42470128,4336.5,4336.4,1e-08]
[1757327525251,20.25543059,4336.5,4336.4,1e-08]
[1757327525560,14.12176049,4336.5,4336.4,1e-08]
[1757327525757,20.25543059,4336.5,4336.4,1e-08]
[1757327525967,19.43353059,4336.5,4336.4,1e-08]
[1757327526253,18.60280128,4336.5,4336.4,1e-08]
[1757327527034,14.74580128,4336.5,4336.4,1e-08]
[1757327527239,18.60280128,4336.5,4336.4,1e-08]
[1757327527453,2.30621987,4336.1,4336.0,0.40050001]
[1757327527770,2.30621987,4336.1,4335.5,0.002]
[1757327527771,2.30627306,4336.0,4335.5,0.002]
[1757327527981,3.14759048,4336.0,4335.5,0.002]
[1757327528281,6.5082287,4336.0,4335.9,1.5927]
[1757327528479,7.09696934,4336.0,4335.9,1.5927]
[1757327529037,6.96755695,4336.0,4335.9,1.5927]
[1757327529363,7.3259188,4336.0,4335.9,2.0352]
[1757327530047,3.4689188,4336.0,4335.9,2.0352]
[1757327530252,6.82955702,4336.0,4335.9,2.0352]
[1757327530554,7.3259188,4336.0,4335.9,2.0352]
[1757327532886,7.3259188,4336.0,4335.9,1.1]
[1757327533597,7.3259188,4336.0,4335.9,0.002]
[1757327533792,7.5818188,4336.0,4335.9,0.002]
[1757327534490,7.3259188,4336.0,4335.9,0.002]
[1757327534982,7.5818188,4336.0,4335.9,0.002]
[1757327535183,7.5810188,4336.0,4335.9,0.002]
[1757327536882,7.3251188,4336.0,4335.9,0.002]
[1757327537708,7.71074762,4336.0,4335.9,0.002]
[1757327538905,7.71074762,4336.0,4335.9,2.0352]
[1757327538906,0.80428389,4336.0,4335.9,2.0352]
[1757327539070,2.39865192,4336.0,4335.9,2.0352]
[1757327539272,2.30627306,4336.0,4335.9,2.0352]
[1757327544968,2.30727306,4336.0,4335.9,2.0352]
[1757327549198,0.001,4336.0,4335.9,2.0352]
[1757327549410,2.30727306,4336.0,4335.9,2.0352]
[1757327550701,2.74270772,4336.0,4335.9,2.0352]
[1757327551115,2.85790772,4336.0,4335.9,2.0352]
[1757327552313,2.85790772,4336.0,4335.9,1.5927]
[1757327552488,2.85790772,4336.0,4335.9,1.1]
[1757327552694,2.85790772,4336.0,4335.9,1.5391]
[1757327553016,2.85790772,4336.0,4335.9,2.0028]
[1757327553314,0.55163466,4336.0,4335.9,2.0028]
[1757327553479,2.42247306,4336.0,4335.9,2.0028]
[1757327553881,0.1162,4336.0,4335.9,2.0028]
[1757327554205,0.001,4336.0,4335.9,2.20808649]
[1757327554386,0.001,4336.0,4335.9,4.62961274]
[1757327555019,0.001,4336.5,4336.4,6.09806032]
[1757327555193,0.001,4336.5,4336.4,10.07026032]
[1757327555397,0.001,4336.5,4336.4,18.82316992]
[1757327556418,0.001,4336.5,4336.4,16.5171096]
[1757327556935,0.001,4336.5,4336.4,18.82316992]
[1757327557131,0.001,4336.5,4336.4,16.5171096]
[1757327558028,0.001,4336.5,4336.4,10.3834395]
[1757327558336,0.001,4336.5,4336.4,12.68949982]
[1757327558700,0.001,4336.5,4336.4,10.3834395]
[1757327558901,0.001,4336.5,4336.4,10.318638]
[1757327559115,0.001,4336.5,4336.4,12.62469832]
[1757327559315,0.001,4336.5,4336.4,10.318638]
[1757327559741,0.001,4336.5,4336.4,8.7885985]
[1757327560519,0.0002,4336.5,4336.4,8.7885985]
[1757327560715,0.0002,4336.5,4336.4,11.09465882]
[1757327560915,0.0002,4336.5,4336.4,11.20985882]
[1757327562272,0.0002,4336.5,4336.4,17.34352892]
[1757327562466,0.0002,4336.5,4336.4,11.04596744]
[1757327562635,0.0002,4336.5,4336.4,13.35202776]
[1757327564381,0.0002,4336.5,4336.4,20.59207927]
[1757327566047,0.0002,4336.5,4336.4,11.04596744]
[1757327566273,0.0002,4336.5,4336.4,8.0594]
[1757327566446,0.0002,4336.5,4336.4,7.5957]
[1757327566648,0.0002,4336.5,4336.4,7.9486]
[1757327569874,0.0002,4336.5,4336.4,8.3877]
[1757327570268,0.0002,4336.5,4336.4,11.15746032]
[1757327570579,0.0002,4336.5,4336.4,8.8514]
[1757327571172,0.0002,4336.5,4336.4,8.3877]
[1757327571349,0.0002,4336.5,4336.4,3.792]
[1757327571540,0.2658,4336.5,4336.4,3.792]
[1757327571746,0.2658,4336.5,4336.4,7.647]
[1757327574454,2.94427787,4336.5,4336.4,4.647]
[1757327574677,0.63827073,4336.5,4336.4,4.647]
[1757327575084,2.94427787,4336.5,4336.4,4.647]
[1757327576301,2.94427787,4336.5,4336.4,0.792]
[1757327576457,2.94427787,4336.5,4336.4,4.647]
[1757327576663,0.381,4336.5,4336.4,4.647]
[1757327577300,0.1154,4336.5,4336.4,4.647]
[1757327578272,2.69790714,4336.5,4336.4,4.647]
[1757327578469,0.3919,4336.5,4336.4,4.647]
[1757327578975,0.1154,4336.5,4336.4,4.6700606]
[1757327579311,0.3919,4336.5,4336.4,0.792]
[1757327579477,2.96778507,4336.5,4336.4,4.647]
[1757327580316,0.3919,4336.5,4336.4,4.647]
[1757327580672,2.69790714,4336.5,4336.4,4.647]
[1757327581068,0.3919,4336.5,4336.4,4.647]
[1757327581771,2.69790714,4336.5,4336.4,4.647]
[1757327582195,3.14360714,4336.5,4336.4,4.647]
[1757327582402,3.73528938,4336.5,4336.4,4.647]
[1757327582714,3.73528938,4336.5,4336.3,0.002]
[1757327582715,2.30606032,4336.4,4336.3,0.002]
[1757327582873,2.30627306,4336.0,4335.9,0.002]
[1757327583071,13.90690846,4336.0,4335.9,0.002]
[1757327583305,16.5646711,4336.0,4335.9,0.002]
[1757327583513,16.73364791,4336.0,4335.9,0.002]
[1757327584074,16.73364791,4336.0,4335.9,0.794]
[1757327584461,16.82603381,4336.0,4335.9,0.794]
[1757327584584,2.30648583,4335.6,4335.1,0.02]
[1757327584923,2.52218391,4335.6,4335.1,0.02]
[1757327585125,7.56388391,4335.6,4335.1,0.02]
[1757327585998,7.56308391,4335.6,4335.1,0.02]
[1757327587233,7.34738583,4335.6,4335.1,0.02]
[1757327587439,8.65822584,4335.6,4335.1,0.02]
[1757327587754,8.75061431,4335.6,4335.1,0.02]
[1757327590119,8.31991431,4335.6,4335.1,0.02]
[1757327590324,8.75061431,4335.6,4335.1,0.02]
[1757327593230,2.42173903,4335.5,4335.4,1e-08]
[1757327593420,4.7417013,4335.5,4335.4,1e-08]
[1757327593620,2.30669865,4335.2,4335.1,1e-08]
[1757327593956,6.16269865,4335.2,4335.1,1e-08]
[1757327594264,7.34939865,4335.2,4335.1,1e-08]
[1757327595154,7.82578665,4335.2,4335.1,1e-08]
[1757327595348,9.05876843,4335.2,4335.1,1e-08]
[1757327598935,16.51366665,4335.2,4335.1,1e-08]
[1757327599358,2.42195186,4335.1,4335.0,1e-08]
[1757327599678,5.30679857,4335.1,4335.0,1e-08]
[1757327599877,5.16579857,4335.1,4335.0,1e-08]
[1757327600082,11.32535295,4335.1,4335.0,1e-08]
[1757327600233,12.01841048,4335.1,4335.0,1e-08]
[1757327600582,11.12141048,4335.1,4335.0,1e-08]
[1757327600726,11.12141048,4335.1,4335.0,1.09270001]
[1757327600727,6.97571048,4335.1,4335.0,1.09270001]
[1757327600931,4.77280939,4335.1,4335.0,1.99260001]
[1757327601373,8.62980939,4335.1,4335.0,1.99260001]
[1757327601577,4.77280939,4335.1,4335.0,1.99260001]
[1757327601810,8.62980939,4335.1,4335.0,1.99260001]
[1757327602768,2.30675186,4335.1,4335.0,1.99260001]
[1757327603275,0.476388,4335.2,4335.1,0.792]
[1757327603439,2.78308665,4335.2,4335.1,1.6788]
[1757327603638,3.47600811,4335.2,4335.1,1.9805]
[1757327603841,2.78308665,4335.2,4335.1,1.9805]
[1757327607665,0.476388,4335.2,4335.1,1.9805]
[1757327607881,2.78308665,4335.2,4335.1,1.9805]
[1757327609307,0.476388,4335.2,4335.1,1.9805]
[1757327609486,0.476388,4335.2,4335.1,2.18105]
[1757327611497,0.475588,4335.2,4335.1,2.18105]
[1757327614203,0.475588,4335.2,4335.1,1.5512]
[1757327614410,2.78228665,4335.2,4335.0,1e-08]
[1757327614574,2.42195186,4335.1,4335.0,0.79200001]
[1757327615086,0.1152,4335.1,4335.0,1.52300001]
[1757327615774,0.1152,4335.1,4335.0,1.98050001]
[1757327616403,0.1152,4335.1,4335.0,1.09370001]
[1757327617930,0.1152,4335.1,4335.0,1.98050001]
[1757327619734,0.1152,4335.1,4335.0,1.09370001]
[1757327619936,2.42195186,4335.1,4335.0,0.79200001]
[1757327621396,2.42195186,4335.1,4335.0,1e-08]
[1757327621896,3.00474562,4335.1,4335.0,1e-08]
[1757327625167,2.74624562,4335.1,4335.0,1.52300001]
[1757327625664,2.74624562,4335.1,4335.0,1.09370001]
[1757327626034,2.74624562,4335.1,4335.0,0.79200001]
[1757327626234,3.00674562,4335.1,4335.0,0.79200001]
[1757327630371,3.22290612,4335.1,4335.0,0.79200001]
[1757327633342,2.96240612,4335.1,4335.0,0.79200001]
[1757327633876,6.81840612,4335.1,4335.0,0.79200001]
[1757327634976,7.31646503,4335.1,4335.0,0.79200001]
[1757327635178,6.99217127,4335.1,4335.0,0.79200001]
[1757327636267,3.13617127,4335.1,4335.0,0.79200001]
[1757327636976,3.13537127,4335.1,4335.0,0.79200001]
[1757327637870,3.39787127,4335.1,4335.0,0.79200001]
[1757327638486,4.09081514,4335.1,4335.0,0.79200001]
[1757327640586,3.82831514,4335.1,4335.0,0.79200001]
[1757327642387,7.68431514,4335.1,4335.0,0.79200001]
[1757327642771,7.94681514,4335.1,4335.0,0.79200001]
[1757327643088,8.9083856,4335.1,4335.0,0.79200001]
[1757327643459,8.6458856,4335.1,4335.0,0.79200001]
[1757327643651,7.68431514,4335.1,4335.0,0.79200001]
[1757327643854,7.68431514,4335.1,4335.0,1.09830001]
[1757327644677,7.68431514,4335.1,4335.0,0.79200001]
[1757327646195,7.93441514,4335.1,4335.0,0.79200001]
[1757327647492,4.07841514,4335.1,4335.0,0.79200001]
[1757327647792,7.93441514,4335.1,4335.0,0.79200001]
[1757327648361,7.93456281,4335.1,4335.0,0.79200001]
[1757327650496,9.09990502,4335.1,4335.0,0.79200001]
[1757327650712,16.30195177,4335.1,4335.0,0.79200001]
[1757327650860,17.13268108,4335.1,4335.0,0.79200001]
[1757327651068,17.1329334,4335.1,4335.0,0.79200001]
[1757327651263,16.30195177,4335.1,4335.0,0.79200001]
[1757327651489,17.13285359,4335.1,4335.0,0.79200001]
[1757327652310,10.99623436,4335.1,4335.0,0.79200001]
[1757327652489,17.13285359,4335.1,4335.0,0.79200001]
[1757327652689,17.13285359,4335.1,4334.8,1e-08]
[1757327652690,2.30685828,4334.9,4334.8,1e-08]
[1757327653008,8.72001768,4334.9,4334.8,1e-08]
[1757327653184,9.90621768,4334.9,4334.8,1e-08]
[1757327653373,11.15163497,4334.9,4334.8,1e-08]
[1757327653580,7.29663497,4334.9,4334.8,1e-08]
[1757327653780,11.15163497,4334.9,4334.8,1e-08]
[1757327654407,9.90621768,4334.9,4334.8,1e-08]
[1757327655204,11.15163497,4334.9,4334.8,1e-08]
[1757327655412,9.90577656,4334.9,4334.8,1e-08]
[1757327657582,9.41908355,4334.9,4334.8,1.58930001]
[1757327657899,3.0209763,4334.9,4334.8,2.04070001]
[1757327658100,6.8759763,4334.9,4334.8,2.04070001]
[1757327658305,3.0209763,4334.9,4334.8,2.04070001]
[1757327658483,6.8759763,4334.9,4334.8,2.04070001]
[1757327659183,6.87581734,4334.9,4334.8,2.04070001]
[1757327659412,6.37775843,4334.9,4334.8,2.04070001]
[1757327659605,6.87517636,4334.9,4334.8,2.04070001]
[1757327659912,3.02017636,4334.9,4334.8,2.04070001]
[1757327660083,6.87517636,4334.9,4334.8,2.04070001]
[1757327660891,6.65927621,4334.9,4334.8,2.04070001]
[1757327662139,6.87518055,4334.9,4334.8,2.04070001]
[1757327662338,6.65847621,4334.9,4334.8,2.04070001]
[1757327662725,6.65847621,4334.9,4334.8,0.79200001]
[1757327663106,6.87438731,4334.9,4334.8,0.79200001]
[1757327668145,6.87438731,4334.9,4334.8,1.08100001]
[1757327668846,6.87438731,4334.9,4334.8,0.79200001]
[1757327669445,7.87005479,4334.9,4334.8,0.79200001]
[1757327674330,7.87005479,4334.9,4334.8,1.08100001]
[1757327674523,6.87438731,4334.9,4334.8,1.08100001]
[1757327676250,6.87438731,4334.9,4334.8,0.79200001]
[1757327679463,8.41139229,4334.9,4334.8,0.79200001]
[1757327680847,8.14439229,4334.9,4334.8,0.79200001]
[1757327681232,4.28939229,4334.9,4334.8,0.79200001]
[1757327681565,8.14339229,4334.9,4334.8,0.79200001]
[1757327682159,4.28939229,4334.9,4334.8,0.79200001]
[1757327682362,8.14339229,4334.9,4334.8,0.79200001]
[1757327684146,14.75071152,4334.9,4334.8,0.79200001]
[1757327684363,14.88038734,4334.9,4334.8,1e-08]
[1757327686462,15.70952979,4334.9,4334.8,1e-08]
[1757327686671,14.88038734,4334.9,4334.8,1e-08]
[1757327687249,16.12580463,4334.9,4334.8,1e-08]
[1757327687669,16.12500463,4334.9,4334.8,1e-08]
[1757327688080,16.12546747,4334.9,4334.8,1e-08]
[1757327688385,9.98884824,4334.9,4334.8,1e-08]
[1757327689467,8.74343095,4334.9,4334.8,1e-08]
[1757327689975,8.27273095,4334.9,4334.8,1e-08]
[1757327690140,8.74343095,4334.9,4334.8,1e-08]
[1757327690547,2.30701794,4334.6,4334.5,1e-08]
[1757327690747,9.2723936,4334.6,4334.5,1e-08]
[1757327690947,9.7430936,4334.6,4334.5,1e-08]